[Event "*** Titled Tuesday Blitz"]
[Site "Chess.com"]
[Date "2021.03.09"]
[Round "3"]
[White "anasta10"]
[Black "Rud_Makarian"]
[Result "0-1"]
[WhiteElo "2464"]
[BlackElo "2815"]
[TimeControl "180+1"]
[EndTime "10:28:35 PST"]
[Termination "Rud_Makarian won by checkmate"]

1. d4 {[%clk 0:03:00.9]} 1... g6 {[%clk 0:02:58]} 2. e4 {[%clk 0:02:54.2]} 2...
Bg7 {[%clk 0:02:55.9]} 3. Nc3 {[%clk 0:02:51.1]} 3... c5 {[%clk 0:02:54.9]} 4.
d5 {[%clk 0:02:51]} 4... d6 {[%clk 0:02:55]} 5. Be3 {[%clk 0:02:50.8]} 5... Nf6
{[%clk 0:02:55]} 6. Qd2 {[%clk 0:02:49.6]} 6... Ng4 {[%clk 0:02:53.8]} 7. Bf4
{[%clk 0:02:49.5]} 7... h5 {[%clk 0:02:53.4]} 8. f3 {[%clk 0:02:48.9]} 8... Ne5
{[%clk 0:02:53.8]} 9. O-O-O {[%clk 0:02:46.4]} 9... a6 {[%clk 0:02:51.9]} 10.
Kb1 {[%clk 0:02:43.7]} 10... b5 {[%clk 0:02:51.8]} 11. Bg3 {[%clk 0:02:33.6]}
11... Nbd7 {[%clk 0:02:49.2]} 12. f4 {[%clk 0:02:32.8]} 12... Nc4 {[%clk
0:02:48.4]} 13. Bxc4 {[%clk 0:02:32.7]} 13... bxc4 {[%clk 0:02:49.3]} 14. Nf3
{[%clk 0:02:32.8]} 14... Rb8 {[%clk 0:02:48.3]} 15. e5 {[%clk 0:02:32.9]} 15...
Qa5 {[%clk 0:02:48]} 16. Rhe1 {[%clk 0:02:25.7]} 16... O-O {[%clk 0:02:47.4]}
17. f5 {[%clk 0:02:15.9]} 17... Nxe5 {[%clk 0:02:45]} 18. Nxe5 {[%clk
0:02:10.1]} 18... Bxf5 {[%clk 0:02:44.9]} 19. Ka1 {[%clk 0:00:09.7]} 19... dxe5
{[%clk 0:02:01.4]} 20. Bxe5 {[%clk 0:00:10.6]} 20... Bxe5 {[%clk 0:02:01.8]} 21.
Rxe5 {[%clk 0:00:11.1]} 21... Rb7 {[%clk 0:02:02.4]} 22. Rf1 {[%clk 0:00:09.5]}
22... Rfb8 {[%clk 0:02:00.5]} 23. Rexf5 {[%clk 0:00:09.9]} 23... gxf5 {[%clk
0:02:00.1]} 24. Qg5+ {[%clk 0:00:10.1]} 24... Kf8 {[%clk 0:01:59.3]} 25. Qh6+
{[%clk 0:00:10.6]} 25... Ke8 {[%clk 0:01:59]} 26. Qc6+ {[%clk 0:00:09.2]} 26...
Kd8 {[%clk 0:01:55]} 27. d6 {[%clk 0:00:09.4]} 27... e6 {[%clk 0:01:52.8]} 28.
d7 {[%clk 0:00:04.8]} 28... Rxd7 {[%clk 0:01:39.1]} 29. Rb1 {[%clk 0:00:02.1]}
29... Qc7 {[%clk 0:01:30.9]} 30. Qf3 {[%clk 0:00:01.8]} 30... Qxh2 {[%clk
0:01:30.9]} 31. Qf2 {[%clk 0:00:02]} 31... Qe5 {[%clk 0:01:31]} 32. Qf3 {[%clk
0:00:01.9]} 32... Rdb7 {[%clk 0:01:30]} 33. a3 {[%clk 0:00:02.4]} 33... h4
{[%clk 0:01:29.4]} 34. Ka2 {[%clk 0:00:02.8]} 34... Ke7 {[%clk 0:01:29.7]} 35.
Qh3 {[%clk 0:00:02.5]} 35... Qd4 {[%clk 0:01:29.2]} 36. Qf3 {[%clk 0:00:02.6]}
36... Rd7 {[%clk 0:01:24.8]} 37. Qh3 {[%clk 0:00:02.6]} 37... Qf6 {[%clk
0:01:22.8]} 38. Qh2 {[%clk 0:00:03.1]} 38... Rbd8 {[%clk 0:01:20.2]} 39. Qh3
{[%clk 0:00:03.7]} 39... Rd2 {[%clk 0:01:20.6]} 40. Qh2 {[%clk 0:00:04]} 40...
Rxc2 {[%clk 0:01:20.5]} 41. Qc7+ {[%clk 0:00:04.7]} 41... Ke8 {[%clk 0:01:21.1]}
42. Qxc5 {[%clk 0:00:05.3]} 42... Qxc3 {[%clk 0:01:20.6]} 43. Qc6+ {[%clk
0:00:05.7]} 43... Kf8 {[%clk 0:01:21]} 44. Qc5+ {[%clk 0:00:05.5]} 44... Kg8
{[%clk 0:01:21.7]} 45. Qc7 {[%clk 0:00:05.1]} 45... Qb3+ {[%clk 0:01:21.7]} 46.
Ka1 {[%clk 0:00:05.6]} 46... Rdd2 {[%clk 0:01:20.9]} 47. Qf4 {[%clk 0:00:03.2]}
47... Qxa3+ {[%clk 0:01:20.4]} 48. bxa3 {[%clk 0:00:03.3]} 48... Ra2# {[%clk
0:01:21.3]} 0-1

[Event "*** Titled Tuesday Blitz"]
[Site "Chess.com"]
[Date "2021.03.09"]
[Round "3"]
[White "maximnovik"]
[Black "TeukkaSalama"]
[Result "1-0"]
[WhiteElo "2558"]
[BlackElo "2371"]
[TimeControl "180+1"]
[EndTime "10:28:37 PST"]
[Termination "maximnovik won by resignation"]

1. d4 {[%clk 0:02:19.6]} 1... e6 {[%clk 0:02:59.8]} 2. c4 {[%clk 0:02:18.9]}
2... f5 {[%clk 0:02:59.9]} 3. g3 {[%clk 0:02:18.5]} 3... Nf6 {[%clk 0:03:00.3]}
4. Bg2 {[%clk 0:02:18.9]} 4... c6 {[%clk 0:03:01]} 5. Nf3 {[%clk 0:02:17.1]}
5... d5 {[%clk 0:03:01.2]} 6. O-O {[%clk 0:02:17.2]} 6... Bd6 {[%clk 0:03:01.3]}
7. Nbd2 {[%clk 0:02:16.4]} 7... O-O {[%clk 0:02:55.8]} 8. Ne5 {[%clk 0:02:16.5]}
8... b6 {[%clk 0:02:53.2]} 9. b3 {[%clk 0:02:16.1]} 9... Bb7 {[%clk 0:02:50.1]}
10. Bb2 {[%clk 0:02:03.2]} 10... Qe7 {[%clk 0:02:49.2]} 11. Ndf3 {[%clk
0:02:02.8]} 11... Nbd7 {[%clk 0:02:42.4]} 12. Nd3 {[%clk 0:02:02.5]} 12... Rac8
{[%clk 0:02:41]} 13. e3 {[%clk 0:01:59.3]} 13... c5 {[%clk 0:02:38.9]} 14. Rc1
{[%clk 0:01:52.4]} 14... Rfd8 {[%clk 0:02:38.1]} 15. Qe2 {[%clk 0:01:51.8]}
15... Ne4 {[%clk 0:02:37]} 16. Rfd1 {[%clk 0:01:51.7]} 16... g5 {[%clk
0:02:26.5]} 17. Nfe5 {[%clk 0:01:49.4]} 17... g4 {[%clk 0:02:18.1]} 18. Nf4
{[%clk 0:01:48.3]} 18... Ndf6 {[%clk 0:01:42.7]} 19. dxc5 {[%clk 0:01:22]} 19...
bxc5 {[%clk 0:01:34.6]} 20. cxd5 {[%clk 0:00:58.3]} 20... exd5 {[%clk
0:01:24.2]} 21. Ned3 {[%clk 0:00:56.4]} 21... Ng5 {[%clk 0:01:17.7]} 22. Qc2
{[%clk 0:00:42.3]} 22... c4 {[%clk 0:01:06.4]} 23. bxc4 {[%clk 0:00:40.2]} 23...
dxc4 {[%clk 0:01:07]} 24. Bxf6 {[%clk 0:00:35.3]} 24... cxd3 {[%clk 0:00:52.7]}
25. Qb3+ {[%clk 0:00:31.8]} 25... Qf7 {[%clk 0:00:44.4]} 26. Qxf7+ {[%clk
0:00:30.1]} 26... Kxf7 {[%clk 0:00:45.3]} 27. Bxg5 {[%clk 0:00:28.7]} 27... Bxg2
{[%clk 0:00:25]} 28. Bxd8 {[%clk 0:00:28.1]} 28... Rxc1 {[%clk 0:00:16.7]} 29.
Rxc1 {[%clk 0:00:25]} 29... Bf3 {[%clk 0:00:15.2]} 30. Nxd3 {[%clk 0:00:23.1]}
1-0

[Event "*** Titled Tuesday Blitz"]
[Site "Chess.com"]
[Date "2021.03.09"]
[Round "3"]
[White "Kopytkin"]
[Black "federicosellitti"]
[Result "1-0"]
[WhiteElo "2372"]
[BlackElo "2526"]
[TimeControl "180+1"]
[EndTime "10:28:38 PST"]
[Termination "Kopytkin won by resignation"]

1. d4 {[%clk 0:03:00.9]} 1... d5 {[%clk 0:02:59.8]} 2. Bg5 {[%clk 0:03:00.6]}
2... h6 {[%clk 0:02:57.5]} 3. Bh4 {[%clk 0:03:00.1]} 3... g5 {[%clk 0:02:57.8]}
4. Bg3 {[%clk 0:03:00.2]} 4... Bg7 {[%clk 0:02:58.1]} 5. e3 {[%clk 0:02:55.7]}
5... Nc6 {[%clk 0:02:53.7]} 6. Nf3 {[%clk 0:02:53.9]} 6... Bg4 {[%clk
0:02:51.4]} 7. Bb5 {[%clk 0:02:53.1]} 7... Nf6 {[%clk 0:02:44.3]} 8. Nbd2 {[%clk
0:02:52.3]} 8... a6 {[%clk 0:02:40.3]} 9. Bxc6+ {[%clk 0:02:46.3]} 9... bxc6
{[%clk 0:02:41.2]} 10. c3 {[%clk 0:02:46.6]} 10... Ne4 {[%clk 0:02:28.3]} 11. h3
{[%clk 0:02:45.3]} 11... Nxg3 {[%clk 0:02:18]} 12. fxg3 {[%clk 0:02:44.2]} 12...
Bh5 {[%clk 0:02:16.6]} 13. g4 {[%clk 0:02:41.2]} 13... Bg6 {[%clk 0:02:17.1]}
14. O-O {[%clk 0:02:41.5]} 14... Qd6 {[%clk 0:02:05.1]} 15. Qe1 {[%clk 0:02:33]}
15... O-O {[%clk 0:01:42.1]} 16. e4 {[%clk 0:02:31.5]} 16... c5 {[%clk
0:01:42.4]} 17. e5 {[%clk 0:02:22.5]} 17... Qb6 {[%clk 0:01:41.7]} 18. Nb3
{[%clk 0:02:19.3]} 18... cxd4 {[%clk 0:01:39.5]} 19. cxd4 {[%clk 0:02:15]} 19...
f6 {[%clk 0:01:28.9]} 20. Qa5 {[%clk 0:02:02.8]} 20... Qxa5 {[%clk 0:01:06.2]}
21. Nxa5 {[%clk 0:02:02.7]} 21... fxe5 {[%clk 0:01:07.1]} 22. Nxe5 {[%clk
0:01:58.9]} 22... Bxe5 {[%clk 0:01:01.5]} 23. dxe5 {[%clk 0:01:58]} 23... Rxf1+
{[%clk 0:00:57.8]} 24. Rxf1 {[%clk 0:01:51.2]} 24... Be8 {[%clk 0:00:53.9]} 25.
Rf3 {[%clk 0:01:41.3]} 25... c5 {[%clk 0:00:49.1]} 26. Nb3 {[%clk 0:01:24.7]}
26... Rc8 {[%clk 0:00:48.2]} 27. Rc3 {[%clk 0:01:23.3]} 27... c4 {[%clk
0:00:37.7]} 28. Nd4 {[%clk 0:01:23.4]} 28... Bd7 {[%clk 0:00:20.3]} 29. b3
{[%clk 0:01:12.7]} 29... cxb3 {[%clk 0:00:19.6]} 30. Rxc8+ {[%clk 0:01:09.3]}
30... Bxc8 {[%clk 0:00:20.5]} 31. axb3 {[%clk 0:01:07.1]} 31... Kf7 {[%clk
0:00:20.3]} 32. Kf2 {[%clk 0:01:07.4]} 32... Ke8 {[%clk 0:00:18.6]} 33. Ke3
{[%clk 0:01:07.4]} 33... Kd7 {[%clk 0:00:19.2]} 34. Nf5 {[%clk 0:01:03.6]} 34...
Ke6 {[%clk 0:00:19.2]} 35. Kd4 {[%clk 0:01:02.7]} 35... Kf7 {[%clk 0:00:14.6]}
36. b4 {[%clk 0:00:49.8]} 36... e6 {[%clk 0:00:11.4]} 37. Nd6+ {[%clk
0:00:48.3]} 1-0

[Event "*** Titled Tuesday Blitz"]
[Site "Chess.com"]
[Date "2021.03.09"]
[Round "3"]
[White "jaskol95"]
[Black "PaulfromSPb"]
[Result "0-1"]
[WhiteElo "2443"]
[BlackElo "2701"]
[TimeControl "180+1"]
[EndTime "10:28:39 PST"]
[Termination "PaulfromSPb won by checkmate"]

1. d4 {[%clk 0:03:00.9]} 1... Nf6 {[%clk 0:02:59.5]} 2. Bf4 {[%clk 0:02:57.1]}
2... c5 {[%clk 0:02:41.4]} 3. d5 {[%clk 0:02:55.8]} 3... g6 {[%clk 0:02:39.6]}
4. Nc3 {[%clk 0:02:55.2]} 4... Bg7 {[%clk 0:02:39.7]} 5. e4 {[%clk 0:02:55.8]}
5... d6 {[%clk 0:02:37.9]} 6. Nf3 {[%clk 0:02:51.3]} 6... a6 {[%clk 0:02:37.7]}
7. a4 {[%clk 0:02:48.6]} 7... O-O {[%clk 0:02:38]} 8. Be2 {[%clk 0:02:43.5]}
8... Nh5 {[%clk 0:02:29.4]} 9. Be3 {[%clk 0:02:36.7]} 9... Nd7 {[%clk
0:02:25.6]} 10. Qd2 {[%clk 0:02:32.8]} 10... Re8 {[%clk 0:02:22.5]} 11. O-O
{[%clk 0:02:31.2]} 11... Rb8 {[%clk 0:02:21]} 12. Bh6 {[%clk 0:02:20.6]} 12...
Bh8 {[%clk 0:02:20]} 13. Bg5 {[%clk 0:02:20.4]} 13... b5 {[%clk 0:02:17.1]} 14.
axb5 {[%clk 0:02:17.2]} 14... axb5 {[%clk 0:02:18]} 15. Bxb5 {[%clk 0:02:09.9]}
15... Bxc3 {[%clk 0:02:16.8]} 16. Qxc3 {[%clk 0:02:05.8]} 16... Rxb5 {[%clk
0:02:16.7]} 17. e5 {[%clk 0:02:01.1]} 17... dxe5 {[%clk 0:02:10.2]} 18. d6
{[%clk 0:01:57.7]} 18... Nhf6 {[%clk 0:02:04.7]} 19. dxe7 {[%clk 0:01:51.5]}
19... Qxe7 {[%clk 0:02:05.6]} 20. Rfe1 {[%clk 0:01:45.3]} 20... Qe6 {[%clk
0:01:38.9]} 21. b3 {[%clk 0:01:37]} 21... Nd5 {[%clk 0:01:32.9]} 22. Qd2 {[%clk
0:01:32.9]} 22... Rb4 {[%clk 0:01:31.5]} 23. c4 {[%clk 0:01:23.7]} 23... Nc7
{[%clk 0:01:29.2]} 24. Qc3 {[%clk 0:01:20.6]} 24... f6 {[%clk 0:01:27.8]} 25.
Be3 {[%clk 0:01:19.1]} 25... Bb7 {[%clk 0:01:28]} 26. Bxc5 {[%clk 0:01:03.8]}
26... Nxc5 {[%clk 0:01:27.8]} 27. Qxb4 {[%clk 0:01:03.9]} 27... Bxf3 {[%clk
0:01:28.4]} 28. gxf3 {[%clk 0:00:42.4]} 28... Nd3 {[%clk 0:01:27.4]} 29. Qb7
{[%clk 0:00:38.4]} 29... Nxe1 {[%clk 0:01:27.1]} 30. Rxe1 {[%clk 0:00:35.6]}
30... Qd6 {[%clk 0:01:27.3]} 31. Ra1 {[%clk 0:00:33.2]} 31... Ne6 {[%clk
0:01:22.3]} 32. h3 {[%clk 0:00:20.1]} 32... Re7 {[%clk 0:01:19.2]} 33. Qc8+
{[%clk 0:00:17.8]} 33... Kg7 {[%clk 0:01:19.1]} 34. Ra8 {[%clk 0:00:18]} 34...
Qd1+ {[%clk 0:01:17.8]} 35. Kh2 {[%clk 0:00:18]} 35... Qf1 {[%clk 0:01:14]} 36.
Qh8+ {[%clk 0:00:07.9]} 36... Kh6 {[%clk 0:01:13.6]} 37. h4 {[%clk 0:00:05.5]}
37... Qxf2+ {[%clk 0:01:13.1]} 38. Kh1 {[%clk 0:00:06.1]} 38... Qxf3+ {[%clk
0:01:12.8]} 39. Kg1 {[%clk 0:00:06.2]} 39... Nf4 {[%clk 0:01:12]} 40. Qf8+
{[%clk 0:00:05.3]} 40... Kh5 {[%clk 0:01:11.7]} 41. Ra2 {[%clk 0:00:05]} 41...
Rd7 {[%clk 0:01:07.4]} 42. Qxf6 {[%clk 0:00:04.4]} 42... Rd1+ {[%clk 0:01:06.9]}
43. Kh2 {[%clk 0:00:05.1]} 43... Rh1# {[%clk 0:01:06.9]} 0-1

[Event "*** Titled Tuesday Blitz"]
[Site "Chess.com"]
[Date "2021.03.09"]
[Round "3"]
[White "Caracternin123"]
[Black "LEGENYA1998"]
[Result "1-0"]
[WhiteElo "2575"]
[BlackElo "2257"]
[TimeControl "180+1"]
[EndTime "10:28:39 PST"]
[Termination "Caracternin123 won by resignation"]

1. e4 {[%clk 0:03:00.9]} 1... c5 {[%clk 0:02:44.9]} 2. Nf3 {[%clk 0:02:47.8]}
2... b6 {[%clk 0:02:41.1]} 3. d4 {[%clk 0:01:55]} 3... cxd4 {[%clk 0:02:39.9]}
4. Nxd4 {[%clk 0:01:55.9]} 4... Bb7 {[%clk 0:02:39.1]} 5. Bd3 {[%clk 0:01:54.7]}
5... g6 {[%clk 0:02:38]} 6. c4 {[%clk 0:01:51.6]} 6... Bg7 {[%clk 0:02:38]} 7.
Be3 {[%clk 0:01:51.8]} 7... Nf6 {[%clk 0:02:38.2]} 8. O-O {[%clk 0:01:50.8]}
8... d6 {[%clk 0:02:38]} 9. Nc3 {[%clk 0:01:50.8]} 9... O-O {[%clk 0:02:38.1]}
10. f3 {[%clk 0:01:50.9]} 10... Nc6 {[%clk 0:02:37.4]} 11. Rc1 {[%clk
0:01:50.4]} 11... Ng4 {[%clk 0:02:33.6]} 12. Nxc6 {[%clk 0:01:49.4]} 12... Nxe3
{[%clk 0:02:33.4]} 13. Nxd8 {[%clk 0:01:49.6]} 13... Nxd1 {[%clk 0:02:28.1]} 14.
Nxb7 {[%clk 0:01:49.5]} 14... Nxc3 {[%clk 0:02:21.6]} 15. e5 {[%clk 0:01:11.9]}
15... Na4 {[%clk 0:02:06.1]} 16. exd6 {[%clk 0:01:08.2]} 16... exd6 {[%clk
0:02:01.8]} 17. b3 {[%clk 0:01:04.7]} 17... Nc5 {[%clk 0:02:01.5]} 18. Be4
{[%clk 0:01:03.2]} 18... Nxb7 {[%clk 0:01:54.8]} 19. Bxb7 {[%clk 0:00:59.7]}
19... Rab8 {[%clk 0:01:53.7]} 20. Bd5 {[%clk 0:00:59.7]} 20... Rfe8 {[%clk
0:01:52.8]} 21. Rfe1 {[%clk 0:01:00.3]} 21... Kf8 {[%clk 0:01:48.1]} 22. g3
{[%clk 0:01:00.2]} 22... Rxe1+ {[%clk 0:01:45.6]} 23. Rxe1 {[%clk 0:01:01.1]}
23... Re8 {[%clk 0:01:44.8]} 24. Rxe8+ {[%clk 0:01:01.4]} 24... Kxe8 {[%clk
0:01:39.4]} 25. Kf2 {[%clk 0:01:02.3]} 25... Bd4+ {[%clk 0:01:37.4]} 26. Ke2
{[%clk 0:01:02.6]} 26... f6 {[%clk 0:01:35.8]} 27. f4 {[%clk 0:01:03]} 27... h6
{[%clk 0:01:34.7]} 28. Kd3 {[%clk 0:01:02.5]} 28... Bc5 {[%clk 0:01:33.2]} 29.
Ke4 {[%clk 0:01:03]} 29... f5+ {[%clk 0:01:25.4]} 30. Kf3 {[%clk 0:01:03]} 30...
Ke7 {[%clk 0:01:25.8]} 31. h4 {[%clk 0:01:03.1]} 31... Kf6 {[%clk 0:01:25.7]}
32. Ke2 {[%clk 0:01:03.2]} 32... g5 {[%clk 0:01:23]} 33. Bc6 {[%clk 0:01:02.9]}
33... gxf4 {[%clk 0:01:20.2]} 34. gxf4 {[%clk 0:01:03.2]} 34... Bd4 {[%clk
0:01:19.4]} 35. Kd3 {[%clk 0:01:02.3]} 35... Bc5 {[%clk 0:01:19.6]} 36. Ke2
{[%clk 0:01:01.5]} 36... Bd4 {[%clk 0:01:19.3]} 37. a3 {[%clk 0:01:01.6]} 37...
Bc5 {[%clk 0:01:18]} 38. b4 {[%clk 0:01:00.3]} 38... Bd4 {[%clk 0:01:18.2]} 39.
Kd3 {[%clk 0:01:00.6]} 39... Bb2 {[%clk 0:01:15.2]} 40. a4 {[%clk 0:00:53.6]}
40... Bc1 {[%clk 0:01:15.3]} 41. h5 {[%clk 0:00:53.4]} 41... Bxf4 {[%clk
0:01:15.1]} 42. Kd4 {[%clk 0:00:53.9]} 42... Be5+ {[%clk 0:01:12.3]} 43. Kd5
{[%clk 0:00:54.2]} 43... Kg5 {[%clk 0:01:11.4]} 44. c5 {[%clk 0:00:50.5]} 44...
bxc5 {[%clk 0:01:11.2]} 45. bxc5 {[%clk 0:00:50.8]} 45... Bf6 {[%clk 0:00:57.8]}
46. Kxd6 {[%clk 0:00:46.1]} 46... Kxh5 {[%clk 0:00:55.7]} 47. Bf3+ {[%clk
0:00:44.3]} 47... Kg5 {[%clk 0:00:55.3]} 48. c6 {[%clk 0:00:44.9]} 48... h5
{[%clk 0:00:50.2]} 49. c7 {[%clk 0:00:44.6]} 1-0

[Event "*** Titled Tuesday Blitz"]
[Site "Chess.com"]
[Date "2021.03.09"]
[Round "3"]
[White "vladimirdamjanovic"]
[Black "anon219"]
[Result "0-1"]
[WhiteElo "2469"]
[BlackElo "2858"]
[TimeControl "180+1"]
[EndTime "10:28:40 PST"]
[Termination "anon219 won by checkmate"]

1. d4 {[%clk 0:03:00.9]} 1... d5 {[%clk 0:02:59.4]} 2. Nc3 {[%clk 0:03:00.7]}
2... Nf6 {[%clk 0:02:58.6]} 3. Bf4 {[%clk 0:03:00.8]} 3... a6 {[%clk 0:02:57.3]}
4. e3 {[%clk 0:03:00.8]} 4... e6 {[%clk 0:02:56.5]} 5. g4 {[%clk 0:03:00.1]}
5... Bb4 {[%clk 0:02:39]} 6. Ne2 {[%clk 0:02:59.5]} 6... c5 {[%clk 0:02:36]} 7.
g5 {[%clk 0:02:14.3]} 7... Nh5 {[%clk 0:02:34.9]} 8. h4 {[%clk 0:01:40.1]} 8...
cxd4 {[%clk 0:02:29.2]} 9. exd4 {[%clk 0:01:23.5]} 9... Nxf4 {[%clk 0:02:21]}
10. Nxf4 {[%clk 0:01:24.4]} 10... Nc6 {[%clk 0:02:21.3]} 11. a3 {[%clk
0:01:15.1]} 11... Bd6 {[%clk 0:02:19]} 12. Qd2 {[%clk 0:01:10.4]} 12... Qb6
{[%clk 0:02:15.9]} 13. O-O-O {[%clk 0:01:09.9]} 13... O-O {[%clk 0:02:12.7]} 14.
h5 {[%clk 0:01:04.9]} 14... Qc7 {[%clk 0:02:04.9]} 15. Rh4 {[%clk 0:00:56.4]}
15... Be7 {[%clk 0:02:00.8]} 16. Rg4 {[%clk 0:00:43]} 16... b5 {[%clk 0:01:48]}
17. g6 {[%clk 0:00:25.7]} 17... fxg6 {[%clk 0:01:39.7]} 18. hxg6 {[%clk
0:00:21.8]} 18... h6 {[%clk 0:01:39.9]} 19. Bg2 {[%clk 0:00:09.3]} 19... Rxf4
{[%clk 0:01:14.9]} 20. Rxf4 {[%clk 0:00:06.2]} 20... Bg5 {[%clk 0:01:14.8]} 21.
Nxd5 {[%clk 0:00:03.1]} 21... Qd6 {[%clk 0:01:06]} 22. Re1 {[%clk 0:00:01.8]}
22... Bd7 {[%clk 0:01:02.5]} 23. Re5 {[%clk 0:00:01.4]} 23... Nxe5 {[%clk
0:00:57.3]} 24. dxe5 {[%clk 0:00:02.3]} 24... Qxe5 {[%clk 0:00:57.9]} 25. Re4
{[%clk 0:00:02.1]} 25... Bxd2+ {[%clk 0:00:55.8]} 26. Kxd2 {[%clk 0:00:03]}
26... Qxd5+ {[%clk 0:00:55.9]} 27. Kc1 {[%clk 0:00:03.9]} 27... Bc6 {[%clk
0:00:55.1]} 28. Rg4 {[%clk 0:00:03.7]} 28... Qxg2 {[%clk 0:00:54.7]} 29. Rxg2
{[%clk 0:00:04.6]} 29... Bxg2 {[%clk 0:00:54.8]} 30. b4 {[%clk 0:00:05.3]} 30...
Rc8 {[%clk 0:00:54.3]} 31. Kb2 {[%clk 0:00:06.2]} 31... Be4 {[%clk 0:00:54.5]}
32. c3 {[%clk 0:00:06.3]} 32... Bxg6 {[%clk 0:00:55.4]} 33. Kc1 {[%clk
0:00:06.8]} 33... h5 {[%clk 0:00:55.4]} 34. Kd2 {[%clk 0:00:07.7]} 34... h4
{[%clk 0:00:55.8]} 35. Ke3 {[%clk 0:00:08.6]} 35... h3 {[%clk 0:00:56.4]} 36.
Kd4 {[%clk 0:00:08.2]} 36... h2 {[%clk 0:00:56.2]} 37. Ke5 {[%clk 0:00:09.1]}
37... h1=Q {[%clk 0:00:56.5]} 38. Kf4 {[%clk 0:00:10]} 38... Qe4+ {[%clk
0:00:56.2]} 39. Kg5 {[%clk 0:00:08.8]} 39... Qf5+ {[%clk 0:00:54.5]} 40. Kh4
{[%clk 0:00:09.1]} 40... Rc4+ {[%clk 0:00:55.3]} 41. f4 {[%clk 0:00:09.2]} 41...
Rxf4+ {[%clk 0:00:54.7]} 42. Kg3 {[%clk 0:00:09.7]} 42... Rg4+ {[%clk
0:00:55.2]} 43. Kh2 {[%clk 0:00:10.1]} 43... Qh5# {[%clk 0:00:56.1]} 0-1

[Event "*** Titled Tuesday Blitz"]
[Site "Chess.com"]
[Date "2021.03.09"]
[Round "3"]
[White "deribas12345"]
[Black "Romadk"]
[Result "1-0"]
[WhiteElo "2544"]
[BlackElo "2361"]
[TimeControl "180+1"]
[EndTime "10:28:40 PST"]
[Termination "deribas12345 won by checkmate"]

1. d4 {[%clk 0:03:00.6]} 1... Nf6 {[%clk 0:02:59.4]} 2. c4 {[%clk 0:02:54.5]}
2... e6 {[%clk 0:02:59.5]} 3. Nc3 {[%clk 0:02:54.7]} 3... Bb4 {[%clk 0:02:59.4]}
4. f3 {[%clk 0:02:55.2]} 4... c5 {[%clk 0:02:58.1]} 5. a3 {[%clk 0:02:55.6]}
5... Bxc3+ {[%clk 0:02:54.4]} 6. bxc3 {[%clk 0:02:56.5]} 6... d5 {[%clk
0:02:51.7]} 7. e3 {[%clk 0:02:56.6]} 7... O-O {[%clk 0:02:39.6]} 8. Bd3 {[%clk
0:02:56.3]} 8... dxc4 {[%clk 0:02:38.5]} 9. Bxc4 {[%clk 0:02:56.2]} 9... Nd5
{[%clk 0:02:39.4]} 10. Ne2 {[%clk 0:02:53.1]} 10... Nb6 {[%clk 0:02:32.2]} 11.
Bd3 {[%clk 0:02:48.5]} 11... e5 {[%clk 0:02:07.5]} 12. dxe5 {[%clk 0:02:43.2]}
12... Qg5 {[%clk 0:01:44.1]} 13. O-O {[%clk 0:02:25.9]} 13... Qxe5 {[%clk
0:01:43.4]} 14. Qc2 {[%clk 0:02:13.4]} 14... h6 {[%clk 0:01:38.5]} 15. c4 {[%clk
0:02:12.4]} 15... Qxa1 {[%clk 0:01:26.8]} 16. Bb2 {[%clk 0:02:12.1]} 16... Qxf1+
{[%clk 0:01:21.9]} 17. Kxf1 {[%clk 0:02:13]} 17... Nc6 {[%clk 0:01:20.8]} 18.
Nf4 {[%clk 0:02:09.2]} 18... Nd8 {[%clk 0:01:04.6]} 19. Nh5 {[%clk 0:01:58.7]}
19... Ne6 {[%clk 0:01:03.8]} 20. Bf5 {[%clk 0:01:53]} 20... f6 {[%clk
0:00:59.5]} 21. Bxe6+ {[%clk 0:01:51]} 21... Bxe6 {[%clk 0:01:00.4]} 22. Qg6
{[%clk 0:01:50.8]} 22... Rf7 {[%clk 0:00:56.9]} 23. Nxf6+ {[%clk 0:01:46.8]}
23... Kf8 {[%clk 0:00:56.8]} 24. Nh7+ {[%clk 0:01:39.3]} 24... Ke7 {[%clk
0:00:54.4]} 25. Bxg7 {[%clk 0:01:38.9]} 25... Bxc4+ {[%clk 0:00:53.7]} 26. Kf2
{[%clk 0:01:38.6]} 26... Nd7 {[%clk 0:00:45.4]} 27. Bxh6 {[%clk 0:01:35.7]}
27... Ne5 {[%clk 0:00:30.7]} 28. Qe4 {[%clk 0:01:29.3]} 28... Be6 {[%clk
0:00:25.8]} 29. Qxe5 {[%clk 0:01:25.7]} 29... Rxh7 {[%clk 0:00:25.7]} 30. Qxc5+
{[%clk 0:01:19.9]} 30... Kf7 {[%clk 0:00:25.4]} 31. Bf4 {[%clk 0:01:16.8]} 31...
Rc8 {[%clk 0:00:23.9]} 32. Qe5 {[%clk 0:00:54]} 32... Rc2+ {[%clk 0:00:23.1]}
33. Kg3 {[%clk 0:00:54.3]} 33... Rg7+ {[%clk 0:00:22.2]} 34. Bg5 {[%clk
0:00:54.5]} 34... Rc6 {[%clk 0:00:18.9]} 35. h4 {[%clk 0:00:51.1]} 35... Rg6
{[%clk 0:00:17.2]} 36. h5 {[%clk 0:00:45.3]} 36... Rg8 {[%clk 0:00:16.8]} 37. f4
{[%clk 0:00:44.5]} 37... b6 {[%clk 0:00:13.7]} 38. Qf6+ {[%clk 0:00:44.3]} 38...
Ke8 {[%clk 0:00:13.1]} 39. Qe7# {[%clk 0:00:45.2]} 1-0